bitfinex-derivatives/quotes_SOLF0:USTF0_20241206
["timestamp","ask_amount","ask_price","bid_price","bid_amount"]
[1733507576584,2.0775,240.39,240.26,2.6505]
[1733507577082,9.98949487,240.4,240.26,2.6505]
[1733507577284,2.0776,240.38,240.31,2.0781]
[1733507577784,2.0777,240.37,240.27,1.3122]
[1733507578285,9.98949487,240.4,240.27,1.3122]
[1733507578492,2.0777,240.37,240.3,2.0783]
[1733507579189,2.0778,240.36,240.3,2.0783]
[1733507580182,9.98949487,240.4,240.27,1.3122]
[1733507580383,2.0777,240.37,240.31,2.0782]
[1733507580583,1.4002,240.46,240.29,9.98949487]
[1733507580889,9.98949487,240.48,240.36,2.0778]
[1733507582189,9.98949487,240.48,240.34,2.0779]
[1733507582583,12.06659487,240.44,240.29,9.98949487]
[1733507582786,9.98949487,240.44,240.29,9.98949487]
[1733507583193,2.0772,240.43,240.29,9.98949487]
[1733507583393,2.0772,240.43,240.33,2.078]
[1733507583587,9.98949487,240.44,240.27,1.3122]
[1733507583783,2.0776,240.38,240.29,2.0783]
[1733507584396,5.7975,240.4,240.31,2.0782]
[1733507584592,5.7975,240.4,240.27,1.3122]
[1733507585586,5.7975,240.4,240.31,2.0782]
[1733507585894,3.72,240.4,240.27,1.3122]
[1733507586090,13.70949487,240.4,240.27,1.3122]
[1733507587392,2.0779,240.36,240.29,2.0784]
[1733507587893,13.70949487,240.4,240.26,2.6505]
[1733507588391,13.70949487,240.4,240.29,2.0784]
[1733507588598,13.70949487,240.4,240.26,2.6505]
[1733507589204,13.70949487,240.4,240.26,12.63999487]
[1733507589205,2.0777,240.38,240.26,12.63999487]
[1733507589400,3.72,240.4,240.27,1.2701]
[1733507589597,13.70949487,240.4,240.27,1.2701]
[1733507589798,2.0776,240.38,240.29,2.0783]
[1733507590002,13.70949487,240.4,240.27,1.2701]
[1733507590297,9.98949487,240.36,240.27,1.2701]
[1733507590503,9.98949487,240.36,240.26,4.7292]
[1733507590701,9.98949487,240.36,240.26,2.6505]
[1733507590898,2.0784,240.3,240.22,2.079]
[1733507591100,9.98949487,240.36,240.19,2.6566]
[1733507591299,9.98949487,240.36,240.2,5.9]
[1733507592095,9.98949487,240.32,240.2,5.9]
[1733507592306,3.52,240.31,240.2,5.9]
[1733507592894,3.52,240.31,240.23,2.0789]
[1733507593101,3.52,240.31,240.2,5.9]
[1733507595601,9.98949487,240.32,240.2,5.9]
[1733507597411,2.0783,240.31,240.2,5.9]
[1733507598602,2.0783,240.31,240.2,7.9792]
[1733507598807,2.0783,240.31,240.2,5.9]
[1733507599729,12.06769487,240.32,240.21,2.0791]
[1733507599903,9.98949487,240.32,240.21,2.0791]
[1733507600905,12.06809487,240.28,240.2,5.9]
[1733507601207,3.52,240.27,240.2,5.9]
[1733507601403,2.0788,240.25,240.2,5.9]
[1733507601606,3.52,240.27,240.2,5.9]
[1733507602609,2.0788,240.25,240.2,5.9]
[1733507603603,1012.5683251,240.49,240.2,5.9]
[1733507603799,9.98949487,240.34,240.2,5.9]
[1733507604407,1.3384,240.33,240.2,5.9]
[1733507604807,2.0785,240.29,240.21,2.0791]
[1733507605106,5.5985,240.29,240.21,2.0791]
[1733507605404,3.52,240.29,240.21,2.0791]
[1733507605601,3.52,240.29,240.2,5.9]
[1733507605602,3.52,240.29,240.22,2.079]
[1733507606007,3.52,240.32,240.2,5.9]
[1733507606208,3.52,240.32,240.24,2.0788]
[1733507606510,12.06779487,240.3,240.2,5.9]
[1733507607509,12.06779487,240.3,240.21,2.0791]
[1733507608211,12.06779487,240.3,240.13,13.50949487]
[1733507608408,9.98949487,240.3,240.13,13.50949487]
[1733507609503,9.98949487,240.3,240.14,8.7145]
[1733507609707,2.0786,240.27,240.14,8.7145]
[1733507610311,2.0788,240.25,240.14,8.7145]
[1733507610510,3.52,240.32,240.14,8.7145]
[1733507610710,9.98949487,240.32,240.14,8.7145]
[1733507610906,2.0783,240.31,240.22,2.079]
[1733507612312,2.0783,240.31,240.23,2.0789]
[1733507614000,2.6256,240.39,240.2,9.98949487]
[1733507614001,3.32,240.37,240.2,9.98949487]
[1733507614208,3.32,240.37,240.23,9.98949487]
[1733507614406,13.30949487,240.38,240.24,1.2987]
[1733507614608,9.98949487,240.38,240.24,1.2987]
[1733507615004,12.06689487,240.41,240.3,2.0783]
[1733507615310,9.98949487,240.41,240.26,13.30949487]
[1733507615707,9.98949487,240.41,240.32,2.0781]
[1733507615906,9.98949487,240.41,240.26,13.30949487]
[1733507616206,9.98949487,240.41,240.24,1.2987]
[1733507616712,2.0777,240.37,240.28,2.0785]
[1733507617015,9.98949487,240.38,240.24,1.2987]
[1733507617211,2.0778,240.36,240.27,2.0786]
[1733507617808,2.0777,240.37,240.29,2.0784]
[1733507618310,9.98949487,240.38,240.3,2.0783]
[1733507618508,9.98949487,240.42,240.24,1.2987]
[1733507618711,9.98949487,240.42,240.26,9.98949487]
[1733507619214,13.30949487,240.42,240.26,9.98949487]
[1733507620212,9.98949487,240.34,240.21,2.6749]
[1733507620511,9.98949487,240.31,240.21,2.6749]
[1733507620712,13.30949487,240.34,240.21,2.6749]
[1733507621109,13.30949487,240.34,240.21,1.3898]
[1733507621315,9.98949487,240.3,240.21,1.3898]
[1733507621711,12.06789487,240.3,240.21,1.3898]
[1733507622617,2.0785,240.29,240.21,1.3898]
[1733507624827,2.0785,240.29,240.2,2.0792]
[1733507629815,2.0785,240.28,240.16,3.4769]
[1733507630119,4.0223,240.33,240.16,1.3974]
[1733507630318,4.0223,240.33,240.15,2.6651]
[1733507630521,2.0788,240.26,240.16,2.0795]
[1733507630824,3.32,240.26,240.15,2.6651]
[1733507631511,3.32,240.26,240.16,9.98949487]
[1733507632315,3.32,240.26,240.15,2.6651]
[1733507633019,3.32,240.26,240.19,2.0793]
[1733507633420,3.32,240.26,240.15,2.6651]
[1733507633718,5.3987,240.26,240.15,2.6651]
[1733507634127,3.32,240.26,240.15,2.6651]
[1733507634826,2.079,240.23,240.17,2.0795]
[1733507637225,2.079,240.23,240.17,8.8895]
[1733507637928,3.32,240.26,240.17,6.81]
[1733507639023,2.0789,240.25,240.17,8.8895]
[1733507639520,2.0789,240.24,240.17,6.81]
[1733507641927,13.30949487,240.26,240.17,6.81]
[1733507642133,2.0791,240.22,240.17,6.81]
[1733507642627,2.0789,240.24,240.17,6.81]
[1733507644527,8.46806974,240.24,240.17,6.81]
[1733507645725,6.38916974,240.24,240.17,8.8895]
[1733507645930,6.38916974,240.24,240.17,6.81]
[1733507646734,6.38916974,240.22,240.17,6.81]
[1733507647622,6.38916974,240.19,240.17,6.81]
[1733507647823,3.14,240.18,240.17,6.81]
[1733507648027,5.2194,240.18,240.17,6.81]
[1733507648827,2.0794,240.18,240.17,6.81]
[1733507649030,5.2194,240.18,240.17,6.81]
[1733507649227,2.0794,240.18,240.17,6.81]
[1733507649429,5.2194,240.18,240.17,6.81]
[1733507649626,3.14,240.18,240.17,6.81]
[1733507650429,5.2194,240.18,240.17,6.81]
[1733507651129,5.2194,240.18,240.17,3.5634]
[1733507651338,2.0803,240.08,239.98,2.6335]
[1733507651634,4.1574,240.27,240.04,6.38916974]
[1733507651832,6.38916974,240.12,239.99,1.3924]
[1733507652130,6.38916974,240.1,240.01,6.38916974]
[1733507652430,6.38916974,240.1,240.03,2.0807]
[1733507653031,3.14,240.11,240.04,8.18]
[1733507653633,6.38916974,240.1,240.04,8.18]
[1733507654530,4.1574,240.27,240.04,8.18]
[1733507654732,2.0798,240.14,240.04,10.2605]
[1733507654930,6.38916974,240.11,240.04,10.2605]
[1733507655933,6.38916974,240.09,240.04,10.2605]
[1733507656527,6.38916974,240.09,240.04,8.18]
[1733507659739,6.38916974,240.07,240.04,8.18]
[1733507660735,8.46946974,240.07,240.04,8.18]
[1733507661134,6.38916974,240.05,240.04,8.18]
[1733507661432,11.60966974,240.05,240.04,8.18]
[1733507666536,52.84916974,240.05,239.68,3.14]
[1733507666736,6.38916974,239.86,239.76,2.5473]
[1733507666946,6.38916974,239.84,239.76,8.93646974]
[1733507667136,6.38916974,239.84,239.76,2.5473]
[1733507667644,6.38916974,239.82,239.76,2.5473]
[1733507668036,55.8,240.05,239.76,2.5473]
[1733507668037,6.38916974,239.8,239.76,2.5473]
[1733507668237,6.38916974,239.78,239.76,5.44]
[1733507668639,3.0,239.81,239.76,5.44]
[1733507668640,10.02232096,239.8,239.76,5.44]
[1733507668839,2.0829,239.78,239.76,5.44]
[1733507669244,10.02232096,239.77,239.76,5.44]
[1733507670554,3.0,239.77,239.76,5.44]
[1733507670759,3.0,239.81,239.76,5.44]
[1733507670957,3.0,239.8,239.76,5.44]
[1733507671457,13.02232096,239.8,239.76,5.44]
[1733507671650,15.10502096,239.8,239.76,5.44]
[1733507671857,3.0,239.8,239.76,5.44]
[1733507673257,12.10522096,239.78,239.76,5.44]
[1733507673459,3.0,239.8,239.76,5.44]
[1733507675156,5.0827,239.8,239.76,5.44]
[1733507676257,2.0829,239.78,239.76,5.44]
[1733507676857,10.02232096,239.77,239.76,5.44]
[1733507678365,13.02232096,239.77,239.76,5.44]
[1733507682264,3.0,239.81,239.76,5.44]
[1733507683464,3.0,239.81,239.77,1.2674]
[1733507683965,13.02232096,239.84,239.77,1.2674]
[1733507684164,13.02232096,239.84,239.78,1.3025]
[1733507687265,3.0,239.84,239.78,1.3025]
[1733507687859,13.02232096,239.84,239.78,1.3025]
[1733507688873,13.02232096,239.84,239.79,5.45]
[1733507689269,3.0,239.84,239.79,5.45]
[1733507689967,10.02232096,239.87,239.79,5.45]
[1733507690165,3.0,239.86,239.79,5.45]
[1733507690368,2.0825,239.83,239.79,5.45]
[1733507690970,5.0822,239.86,239.79,5.45]
[1733507691167,10.02232096,239.8,239.79,5.45]
[1733507691874,12.10502096,239.8,239.79,5.45]
[1733507693373,22.12734192,239.8,239.79,5.45]
[1733507693864,22.12734192,239.8,239.79,3.72137322]
[1733507694066,20.04464192,239.8,239.64,1.2646]
[1733507694369,10.02232096,239.67,239.64,1.2646]
[1733507694779,10.02232096,239.67,239.47,0.77651424]
[1733507694976,10.02232096,239.64,239.56,2.0848]
[1733507696273,10.02232096,239.64,239.55,3.3495]
[1733507696472,3.0,239.63,239.55,3.3495]
[1733507696672,3.0,239.63,239.55,1.2646]
[1733507697382,3.0,239.63,239.55,3.3495]
[1733507697776,3.0,239.63,239.55,1.2646]
[1733507697977,10.02232096,239.59,239.55,1.2646]
[1733507698173,10.02232096,239.62,239.55,1.2646]
[1733507698374,3.0,239.63,239.55,1.2646]
[1733507698578,13.02232096,239.63,239.55,1.2646]
[1733507698781,10.02232096,239.6,239.55,1.2646]
[1733507699678,13.02232096,239.63,239.55,1.2646]
[1733507701184,10.02232096,239.59,239.42,10.02232096]
[1733507701380,10.02232096,239.59,239.45,1.3178]
[1733507701574,10.02232096,239.59,239.46,1.04341895]
[1733507701774,10.02232096,239.59,239.45,1.3178]
[1733507702175,2.0847,239.58,239.49,2.0854]
[1733507703181,2.0844,239.61,239.49,10.02232096]
[1733507703379,3.28,239.68,239.49,10.02232096]
[1733507703879,3.28,239.68,239.45,4.5978]
[1733507704076,10.02232096,239.61,239.45,4.5978]
[1733507704277,13.30232096,239.61,239.45,4.5978]
[1733507704475,13.30232096,239.61,239.46,4.79870594]
[1733507704679,13.30232096,239.61,239.48,10.02232096]
[1733507704680,3.28,239.61,239.48,10.02232096]
[1733507704881,3.28,239.61,239.49,2.71231205]
[1733507705078,3.28,239.61,239.48,10.02232096]
[1733507705079,3.28,239.61,239.5,1.04319694]
[1733507705284,3.28,239.61,239.51,1.04319694]
[1733507705485,13.30232096,239.61,239.45,4.5978]
[1733507705782,2.0849,239.56,239.46,2.71266363]
[1733507705984,2.0849,239.56,239.47,2.71266363]
[1733507706187,13.30232096,239.61,239.48,1.04333216]
[1733507706488,13.30232096,239.61,239.49,1.04333216]
[1733507706687,13.30232096,239.61,239.5,1.04333216]
[1733507706881,2.0847,239.58,239.51,3.12863216]
[1733507707185,2.0847,239.58,239.52,1.2946]
[1733507707386,14.18872096,239.76,239.53,2.71263024]
[1733507707387,2.0846,239.6,239.53,2.71263024]
[1733507707584,3.28,239.63,239.54,2.71263024]
[1733507707779,3.28,239.63,239.55,1.04331932]
[1733507708080,3.28,239.63,239.56,1.04331932]
[1733507708280,10.02232096,239.65,239.57,1.3977]
[1733507708583,3.28,239.66,239.57,1.3977]
[1733507709184,10.02232096,239.69,239.57,1.3977]
[1733507709490,10.02232096,239.69,239.58,2.71235947]
[1733507709685,2.0836,239.71,239.59,2.71235947]
[1733507709886,13.30232096,239.73,239.6,4.79844483]
[1733507710082,13.30232096,239.73,239.61,2.71235947]
[1733507710288,13.30232096,239.73,239.62,4.01495947]
[1733507710484,10.02232096,239.65,239.63,3.98395947]
[1733507710691,10.02232096,239.65,239.57,1.3977]
[1733507710886,12.10652096,239.65,239.58,2.71184106]
[1733507711094,12.10652096,239.65,239.57,3.4824]
[1733507711095,10.02232096,239.65,239.59,2.71184106]
[1733507711290,10.02232096,239.65,239.6,1.04301579]
[1733507711495,10.02232096,239.65,239.58,2.6628]
[1733507711796,10.02232096,239.65,239.59,1.0431582]
[1733507711985,2.0843,239.63,239.58,2.6628]
[1733507712186,10.02232096,239.65,239.58,2.6628]
[1733507712391,10.02232096,239.65,239.59,1.0432173]
[1733507712591,3.28,239.66,239.58,1.3912]
[1733507712592,16.05859915,239.64,239.58,1.3912]
[1733507712790,16.05859915,239.64,239.49,0.78999111]
[1733507712998,16.05859915,239.64,239.5,6.11593413]
[1733507713288,16.05859915,239.6,239.51,2.71249755]
[1733507713494,16.05859915,239.56,239.47,2.6628]
[1733507713688,3.48,239.55,239.48,2.71304724]
[1733507713891,3.48,239.55,239.49,2.71304724]
[1733507716995,5.5654,239.5,239.41,2.0861]
[1733507717296,3.48,239.5,239.37,1.3611]
[1733507717497,16.05859915,239.48,239.37,1.3611]
[1733507718496,2.0857,239.47,239.37,1.3611]
[1733507718993,2.0857,239.46,239.38,2.0864]
[1733507719395,2.0858,239.45,239.37,1.3611]
[1733507719599,16.05859915,239.48,239.37,1.3611]
[1733507719996,2.0862,239.41,239.36,1.3169]
[1733507721189,16.05859915,239.44,239.34,5.0]
[1733507721398,16.05859915,239.4,239.34,5.0]
[1733507721600,3.48,239.39,239.34,5.0]
[1733507722094,2.0865,239.37,239.34,5.0]
[1733507722695,3.48,239.39,239.34,5.0]
[1733507723297,16.05859915,239.4,239.34,5.0]
[1733507723497,3.48,239.39,239.34,5.0]
[1733507723694,16.05859915,239.36,239.34,5.0]
[1733507725603,18.14519915,239.36,239.34,5.0]
[1733507725802,3.48,239.39,239.34,5.0]
[1733507726799,2.0865,239.37,239.34,5.0]
[1733507727599,2.0866,239.36,239.34,5.0]
[1733507727802,16.05859915,239.36,239.34,5.0]
[1733507727998,16.05859915,239.36,239.15,2.7427]
[1733507728199,3.48,239.39,239.15,2.7427]
[1733507728200,16.05859915,239.27,239.15,2.7427]
[1733507728400,3.48,239.26,239.15,2.7427]
[1733507728698,5.5674,239.26,239.16,2.0882]
[1733507728899,16.05859915,239.23,239.1,1.3916]
[1733507729397,2.088,239.19,239.1,1.3916]
[1733507729594,3.48,239.18,239.1,1.3916]
[1733507729792,3.48,239.18,239.08,2.7611]
[1733507729993,3.48,239.18,239.1,2.0888]
[1733507730204,3.48,239.18,239.08,2.7611]
[1733507731399,3.48,239.18,239.13,2.0885]
[1733507731603,3.48,239.18,239.08,2.7611]
[1733507731899,2.0877,239.23,239.17,2.0882]
[1733507732099,16.05859915,239.4,239.08,2.7611]
[1733507732100,3.48,239.29,239.11,16.05859915]
[1733507732301,16.05859915,239.32,239.12,1.2865]
[1733507732302,3.48,239.3,239.12,1.2865]
[1733507732500,2.0871,239.29,239.23,2.0876]
[1733507732699,3.48,239.3,239.15,16.05859915]
[1733507732893,3.48,239.3,239.15,19.53859915]
[1733507733299,3.48,239.3,239.26,2.0873]
[1733507733494,3.48,239.34,239.15,19.53859915]
[1733507733999,16.05859915,239.32,239.15,3.48]
[1733507734200,16.05859915,239.32,239.12,1.2865]
[1733507734398,2.0877,239.23,239.12,1.2865]
[1733507734599,19.53859915,239.24,239.12,1.2865]
[1733507734800,3.48,239.23,239.12,1.2865]
[1733507735201,2.0881,239.18,239.12,3.3751]
[1733507735500,3.48,239.23,239.08,2.7611]
[1733507735699,2.0884,239.15,239.09,2.0889]
[1733507736107,3.48,239.23,239.09,2.0889]
[1733507736314,16.05859915,239.2,239.09,2.0889]
[1733507737208,2.0886,239.13,239.05,2.0892]
[1733507737499,2.0886,239.13,239.0,1.3986]
[1733507737500,3.48,239.15,239.01,2.6967]
[1733507737699,16.05859915,239.2,239.01,2.6967]
[1733507737700,19.53859915,239.2,239.01,2.6967]
[1733507737901,2.088,239.19,239.12,2.0886]
[1733507738097,3.48,239.21,239.02,16.05859915]
[1733507738405,5.5677,239.23,239.06,16.05859915]
[1733507739204,3.48,239.23,239.06,16.05859915]
[1733507739506,2.0878,239.22,239.06,16.05859915]
[1733507739703,3.48,239.23,239.06,16.05859915]
[1733507739906,3.48,239.23,239.17,2.0882]
[1733507740606,3.48,239.23,239.06,16.05859915]
[1733507740805,3.48,239.23,239.16,2.0882]
[1733507741503,3.48,239.23,239.02,20.40816472]
[1733507741705,3.48,239.23,239.02,16.05859915]
[1733507742207,2.0878,239.22,239.15,2.0883]
[1733507743010,16.05859915,239.28,239.08,3.42]
[1733507743201,3.42,239.25,239.08,3.42]
[1733507743508,2.0873,239.28,239.22,2.0877]
[1733507743705,674.11338,239.3,239.15,3.42]
[1733507743905,674.11338,239.3,239.16,2.5492]
[1733507744809,674.11338,239.3,239.18,16.05859915]
[1733507745307,674.11338,239.3,239.29,2.0871]
[1733507745308,657.16398,239.3,239.29,2.0871]
[1733507746510,657.16398,239.3,239.27,2.0872]
[1733507746707,657.16398,239.3,239.23,3.42]
[1733507747008,657.16398,239.3,239.2,3.42]
[1733507747707,657.16398,239.3,239.28,2.0872]
[1733507747915,652.94708,239.3,239.28,2.0872]
[1733507748206,650.84768,239.3,239.28,2.0872]
[1733507752814,525.54662632,239.3,239.28,2.0872]
[1733507753015,519.23602632,239.3,239.29,17.37999915]
[1733507753310,517.13852632,239.3,239.29,19.46709915]
[1733507753518,517.13852632,239.3,239.29,18.14569915]
[1733507754910,391.83747264,239.3,239.29,21.56569915]
[1733507757118,266.56260955,239.3,239.29,21.56569915]
[1733507757317,263.86080955,239.3,239.29,21.56569915]
[1733507757615,257.89970955,239.3,239.29,21.56569915]
[1733507757819,248.54560955,239.3,239.29,21.56569915]
[1733507758317,243.38720955,239.3,239.29,24.29814066]
[1733507758512,243.38720955,239.3,239.29,21.56569915]
[1733507758913,243.38720955,239.3,239.29,23.65521396]
[1733507759313,118.17199852,239.3,239.29,23.65521396]
[1733507759517,118.17199852,239.3,239.29,25.19098195]
[1733507759718,118.17199852,239.3,239.29,27.90420302]
[1733507760015,118.17199852,239.3,239.29,35.02030177]
[1733507760513,118.17199852,239.3,239.29,35.0196798]
[1733507760718,118.17199852,239.3,239.29,27.90420302]
[1733507760917,118.17199852,239.3,239.29,35.0196798]
[1733507761221,118.17199852,239.3,239.29,35.02736105]
[1733507761421,16.05859915,239.55,239.29,32.94026105]
[1733507761619,16.05859915,239.55,239.36,16.05859915]
[1733507761814,16.05859915,239.55,239.37,3.4]
[1733507762016,18.14349915,239.55,239.37,3.4]
[1733507762219,16.05859915,239.55,239.37,3.4]
[1733507764118,16.05859915,239.51,239.3,2.08942749]
[1733507764315,16.05859915,239.51,239.3,18.14802664]
[1733507764519,16.05859915,239.51,239.31,3.4]
[1733507765922,16.05859915,239.47,239.3,2.08942749]
[1733507766124,7.4028,239.46,239.3,2.08942749]
[1733507766620,2.0858,239.44,239.3,2.08942749]
[1733507766823,7.4028,239.46,239.3,2.08942749]
[1733507767220,4.0028,239.46,239.3,18.14802664]
[1733507767621,4.0028,239.46,239.34,16.05859915]
[1733507767821,4.0028,239.46,239.34,19.45859915]
[1733507768024,2.6156,239.46,239.34,19.45859915]
[1733507768222,3.4,239.54,239.38,16.05859915]
[1733507768423,2.6156,239.53,239.38,16.05859915]
[1733507769929,2.6156,239.53,239.42,16.05859915]
[1733507770122,2.6156,239.53,239.43,3.4]
[1733507774126,2.6156,239.53,239.42,16.05859915]
[1733507774332,2.6156,239.53,239.44,3.28]
[1733507775128,1.3216,239.55,239.46,16.05859915]
[1733507775630,1.3216,239.55,239.34,3.28]
[1733507775822,2.0851,239.53,239.34,3.28]
[1733507776138,1.3216,239.55,239.37,16.05859915]
[1733507776332,2.7021,239.52,239.37,16.05859915]
[1733507779933,2.7021,239.52,239.41,16.05859915]
[1733507780132,2.7021,239.52,239.45,16.05859915]
[1733507780338,2.7021,239.52,239.46,3.28]
[1733507781039,2.7021,239.52,239.45,16.05859915]
[1733507781235,2.7021,239.52,239.41,16.05859915]
[1733507782837,2.7021,239.52,239.39,3.28]
[1733507783136,2.7021,239.52,239.38,3.28]
[1733507784634,2.7021,239.52,239.42,10.03897783]
[1733507787637,1.3216,239.55,239.46,10.03897783]
[1733507787840,1.3216,239.55,239.47,3.28]
[1733507789939,1.3216,239.55,239.42,10.03897783]
[1733507791042,2.7277,239.59,239.42,10.03897783]
[1733507791248,12.76667783,239.59,239.42,10.03897783]
[1733507791441,2.7277,239.59,239.42,10.03897783]
[1733507792644,12.76667783,239.59,239.42,10.03897783]
[1733507792847,2.0848,239.56,239.42,10.03897783]
[1733507793550,2.0847,239.57,239.42,10.03897783]
[1733507793751,2.7277,239.59,239.46,10.03897783]
[1733507793952,2.7277,239.59,239.42,10.03897783]
[1733507794955,2.0847,239.57,239.42,10.03897783]
[1733507795552,2.7277,239.59,239.42,10.03897783]
[1733507795756,2.7277,239.59,239.46,10.03897783]
[1733507797260,2.0846,239.58,239.46,10.03897783]
[1733507797456,2.0846,239.58,239.42,10.03897783]
[1733507797665,2.7277,239.59,239.43,3.79835501]
[1733507797865,2.7277,239.59,239.42,10.03897783]
[1733507797866,2.7277,239.59,239.51,10.03897783]
[1733507798053,2.7277,239.59,239.51,13.11897783]
[1733507798659,2.7277,239.59,239.54,10.03897783]
[1733507798860,2.7277,239.59,239.51,13.11897783]
[1733507801463,1.3551,239.59,239.54,10.03897783]
[1733507801655,2.5805,239.66,239.54,10.03897783]
[1733507802066,2.5805,239.66,239.58,10.03897783]
[1733507803756,2.5805,239.66,239.59,3.08]
[1733507805765,2.5805,239.66,239.6,10.03897783]
[1733507806160,1.269,239.66,239.6,10.03897783]
[1733507806363,2.0833,239.73,239.63,10.03897783]
[1733507806561,10.03897783,239.69,239.46,3.79199894]
[1733507806762,10.03897783,239.66,239.5,10.03897783]
[1733507806969,4.0859,239.65,239.5,10.03897783]
[1733507807365,4.0859,239.65,239.41,25.28151428]
[1733507807366,4.0859,239.65,239.49,10.03897783]
[1733507807566,4.0859,239.65,239.52,10.03897783]
[1733507807767,4.0859,239.65,239.55,10.03897783]
[1733507808166,2.0841,239.64,239.55,10.03897783]
[1733507808469,4.0859,239.65,239.55,10.03897783]
[1733507809372,4.0859,239.65,239.61,10.03897783]
[1733507809766,2.6939,239.65,239.61,10.03897783]
[1733507809973,2.0835,239.71,239.61,10.03897783]
[1733507810172,3.982,239.72,239.61,10.03897783]
[1733507810369,2.0836,239.69,239.61,10.03897783]
[1733507811370,2.0835,239.7,239.61,10.03897783]
[1733507811771,3.982,239.72,239.61,10.03897783]
[1733507812966,3.982,239.72,239.64,10.03897783]
[1733507813181,3.3,239.81,239.67,10.03897783]
[1733507813473,2.6864,239.79,239.65,3.3]
[1733507813772,2.6864,239.79,239.64,13.33897783]
[1733507815767,2.0829,239.77,239.64,13.33897783]
[1733507816169,2.6864,239.79,239.65,10.03897783]
[1733507817770,2.0831,239.75,239.65,10.03897783]
[1733507818974,2.6864,239.79,239.68,10.03897783]
[1733507819169,2.0829,239.77,239.71,10.03897783]
[1733507821275,2.083,239.76,239.71,10.03897783]
[1733507822376,1.3906,239.87,239.74,10.03897783]
[1733507822571,1.3906,239.87,239.77,10.03897783]
[1733507823172,2.0824,239.83,239.77,10.03897783]
[1733507824078,2.0827,239.8,239.74,10.03897783]
[1733507824374,11.43167783,239.86,239.71,10.03897783]
[1733507824681,3.3,239.85,239.71,10.03897783]
[1733507825076,2.0829,239.77,239.71,10.03897783]
[1733507825473,2.0824,239.83,239.74,10.03897783]
[1733507825675,1.3927,239.86,239.74,10.03897783]
[1733507827470,3.3,240.05,239.85,10.03897783]
[1733507827670,2.6689,240.01,239.9,10.03897783]
[1733507827881,1.2753,240.0,239.9,10.03897783]
[1733507828070,2.081,239.99,239.9,10.03897783]
[1733507828380,1.2753,240.0,239.93,10.03897783]
[1733507828680,2.081,239.99,239.93,10.03897783]
[1733507829081,1.2753,240.0,239.9,10.03897783]
[1733507829875,2.0811,239.98,239.9,10.03897783]
[1733507831183,1.2753,240.0,239.9,10.03897783]
[1733507831886,2.0814,239.95,239.9,10.03897783]
[1733507832180,10.03897783,239.99,239.86,3.3]
[1733507832476,3.3,239.98,239.81,13.33897783]
[1733507833477,2.0815,239.93,239.81,13.33897783]
[1733507833672,3.3,239.98,239.85,10.03897783]
[1733507833885,1.2753,240.0,239.85,10.03897783]
[1733507834075,1.2753,240.0,239.89,10.03897783]
[1733507834279,1.2753,240.0,239.92,10.03897783]
[1733507835679,1.2753,240.0,239.89,3.3]
[1733507836981,4.1589,240.18,239.95,10.03897783]
[1733507837280,10.03897783,240.11,239.95,10.03897783]
[1733507837483,13.13897783,240.11,239.95,10.03897783]
[1733507837686,10.03897783,240.07,239.91,10.03897783]
[1733507838083,2.6926,240.06,239.91,10.03897783]
[1733507838278,2.0808,240.02,239.91,10.03897783]
[1733507838988,2.0808,240.01,239.91,10.03897783]
[1733507839184,2.6926,240.06,239.91,10.03897783]
[1733507839686,2.0807,240.03,239.91,10.03897783]
[1733507839880,2.6926,240.06,239.91,10.03897783]
[1733507840277,2.0808,240.02,239.91,10.03897783]
[1733507840983,2.6926,240.06,239.91,10.03897783]
[1733507841482,2.0808,240.02,239.91,10.03897783]
[1733507843087,2.0808,240.01,239.91,10.03897783]
[1733507843290,10.03897783,239.99,239.84,3.1]
[1733507843585,10.03897783,239.99,239.83,13.13897783]